Cogmind - Beta 15 @@@ ROGUE MODE // 2025.07.15 @ 16:17:00 Player: f3-rnm Result: Destroyed by LO-2SA(j) with Overtuned Pulse Rifle Performance ------------- Evolutions (0) 0 Regions Visited (3) 600 Robots Destroyed (26) 130 Value Destroyed (606) 606 Prototype IDs (6) 120 Alien Tech Used (0) 0 Bonus (300) 300 TOTAL SCORE: 1756 Bonus ------- Registered with UFD 300 Cogmind --------- Core Integrity 0/250 Matter 232/300 Energy 91/100 System Corruption 2% Temperature Cool (12) Movement Core (50) Location -9/Scraptown Parts ------- > --- POWER (1) -------- (None) > --- PROPULSION (2) --- (None) > --- UTILITY (2) ------ (None) > --- WEAPON (2) ------- (None) > --- INVENTORY (5) ---- Scrap Shield Master Drone Bay (1/1) Spread Laser Peak State ------------ > --- POWER ------------ Ion Engine > --- PROPULSION ------- Wheel Wheel > --- UTILITY ---------- Humpback > --- WEAPON ----------- Spread Laser Battle Cannon > --- INVENTORY -------- Subdweller Power Source Makeshift Power Source Light Treads Subdweller Monowheel Heat Sink Disposable Heat Sink Disposable Heat Sink Large Storage Unit Subdweller Optics Scrap Shield Scrap Shield Spread Laser Spread Laser Spread Laser Shotgun Shotgun Shotgun Shotgun Battle Rifle Subdweller Machine Gun Rocket Launcher Rocket Launcher Subdweller Shrapnel Launcher Multitool Scrap Shield Fragment Scrap Shield Fragment Scrap Shield Fragment Scrap Shield Fragment Scrap Shield Fragment [Rating: 15] Favorites ----------- Power Ion Engine Engine Ion Engine Propulsion Wheel Treads Light Treads Wheel Wheel Utility Humpback Device Shield Generator Storage Humpback Processor Improved Targeting Computer Protection Scrap Shield Weapon Spread Laser Energy Gun Spread Laser Ballistic Gun Assault Rifle Ballistic Cannon Battle Cannon Build | -11 -10 -10 -9 ------- Run | Yrd Mat Sub Scr Slots Evolved . | . . . . Power . | . . . . Propulsion . | . . . . Utility . | . . . . Weapon . | . . . . Parts Attached 25 | 6 7 9 3 Power 2 | 1 . 1 . Engine 2 | 1 . 1 . Core . | . . . . Reactor . | . . . . Propulsion 5 | 2 . 2 1 Treads 2 | 2 . . . Leg . | . . . . Wheel 3 | . . 2 1 Hover . | . . . . Flight . | . . . . Utility 7 | 1 3 1 2 Device 2 | . 1 . 1 Storage 3 | 1 1 1 . Processor 1 | . 1 . . Hackware . | . . . . Protection 1 | . . . 1 Artifact . | . . . . Weapon 11 | 2 4 5 . Energy Gun 3 | . 1 2 . Energy Cannon . | . . . . Ballistic Gun 7 | 2 3 2 . Ballistic Cannon 1 | . . 1 . Launcher . | . . . . Special Weapon . | . . . . Impact Weapon . | . . . . Slashing Weapon . | . . . . Piercing Weapon . | . . . . Special Melee Weapon . | . . . . Unidentified Prototypes . | . . . . Parts Lost 7 | . . 2 5 Power 1 | . . 1 . Propulsion 5 | . . 1 4 Utility 1 | . . . 1 Weapon . | . . . . Highest Loss Streak 5 | . . 1 5 To Critical Strikes . | . . . . Average Backups 18 | 1 6 19 24 Power 1 | . 1 1 1 Propulsion 1 | . 1 1 1 Utility 4 | . . 4 6 Weapon 9 | . 3 11 12 Tool/Special . | . . . . Unused Backups 18 | . 1 . 17 Power 2 | . . . 2 Propulsion . | . . . . Utility 5 | . . . 5 Weapon 9 | . 1 . 8 Tool/Special 2 | . . . 2 Average Slot Usage (%) 77 | . 93 87 55 Engine 13 | . 14 13 13 Treads 7 | . 28 5 . Wheel 19 | . . 22 27 Storage 13 | . 14 14 13 Processor 2 | . 7 2 . Energy Gun 7 | . 1 16 . Ballistic Gun 6 | . 26 2 . Ballistic Cannon 4 | . . 8 . Peak Build Rating 15 | 6 12 15 13 Average Rating 11 | 4 8 13 10 On Entrance 8 | . 6 12 15 Naked Turns 11 | . . . 11 Heaviest Build 211 | 13 31 211 205 Greatest Support 40 | 40 40 40 20 Greatest Overweight (x) 21 | . . 21 10 Average Overweight (x) 6 | . . 7 8 Largest Inventory Capacity 35 | 8 15 35 35 Average Capacity 27 | 7 9 30 33 Most Carried 34 | 3 12 32 34 Average Carried 22 | 1 6 23 31 Final Capacity 35 | 8 15 35 5 Final Carried 32 | 3 12 32 4 Class Distribution -------------------- 69% | Hauler-Mutant 30% | Mutant Dominant Class ---------------- Mutant | -10/Materials Hauler-Mutant | -10/Subcaves Hauler-Mutant | -9/Scraptown Resources | -11 -10 -10 -9 ----------- Run | Yrd Mat Sub Scr Matter Collected 910 | 260 243 346 61 Remotely . | . . . . Salvage Created 657 | . 465 192 . Parts 51 | . 36 12 3 Haulers Intercepted . | . . . . Recyclers Shooed 1 | . 1 . . Parts Field Recycled . | . . . . Retrieved Matter . | . . . . Parts Self-Destructed 1 | . . 1 . Prevented . | . . . . Kills | -11 -10 -10 -9 ------- Run | Yrd Mat Sub Scr Combat Hostiles Destroyed 22 | . 14 8 . Guns 21 | . 14 7 . Cannons 1 | . . 1 . Classes Destroyed 8 | . 5 2 1 Builder 2 | . 2 . . Recycler 1 | . 1 . . Operator 1 | . 1 . . Swarmer 9 | . 9 . . Grunt 6 | . 5 1 . Cobbler 1 | . . 1 . Subdweller 7 | . . 7 . Scientist 3 | . . . 3 Best Kill Streak 3 | . 3 2 3 Combat Bots Only 3 | . 3 2 . Max Kills in Single Turn 3 | . 1 1 3 Gunslinging . | . . . . Exploded . | . . . . Melee . | . . . . Uniques/NPCs Destroyed . | . . . . Combat | -11 -10 -10 -9 -------- Run | Yrd Mat Sub Scr Hostile Shots Fired 111 | . 46 28 37 Missed 38 | . 14 6 18 Hits 73 | . 32 22 19 Projectile 73 | . 32 22 19 Critical Strikes 2 | . . . 2 Damage Taken 1189 | . 257 446 486 Core 264 | . 25 62 177 Absorbed by Shields . | . . . . Core Remaining (%) 100 | 100 . . . Volleys Fired 112 | . 58 54 . Largest 2 | . 2 2 . Hottest 130 | . 70 130 . Shots Fired 224 | . 115 109 . Gun 185 | . 115 70 . Cannon 39 | . . 39 . Launcher . | . . . . Special . | . . . . Kinetic 156 | . 104 52 . Thermal 68 | . 11 57 . Explosive . | . . . . Electromagnetic . | . . . . Robot Hit Streak 30 | . 8 30 . Robot Miss Streak 6 | . 6 5 . Penetration Max . | . . . . Secondary Targets 5 | . 5 . . Max Gunslinging Chain 1 | . 1 . . Shots Hit Robots 116 | . 68 48 . Core Hits 77 | . 29 46 2 Critical Kills . | . . . . Critical Parts Destroyed . | . . . . Critical Strikes 4 | . 3 1 . Burn 3 | . 3 . . Blast 1 | . . 1 . Melee Attacks . | . . . . Impact . | . . . . Slashing . | . . . . Piercing . | . . . . Sneak Attacks . | . . . . Combat Hostiles . | . . . . Follow-up Attacks . | . . . . Damage Inflicted 2170 | . 772 902 496 Guns 1445 | . 769 676 . Cannons 226 | . . 226 . Explosions 496 | . . . 496 Melee . | . . . . Ramming 3 | . 3 . . Kinetic 991 | . 670 321 . Thermal 680 | . 99 581 . Explosive . | . . . . Electromagnetic . | . . . . Impact . | . . . . Slashing . | . . . . Piercing . | . . . . Entropic 496 | . . . 496 Highest Corruption 2 | . 2 2 2 Average Corruption 1 | . 1 2 2 Corruption Purged . | . . . . Corruption Blocked . | . . . . Effects 54 | . 4 29 21 Message Errors 17 | . 1 10 6 Matter Fused 10 | . . 5 5 Heat Flow Errors 5 | . . 3 2 Energy Discharges 7 | . 1 1 5 Parts Rejected 1 | . 1 . . Data Loss (minor) 6 | . . 5 1 Data Loss (major) 1 | . . . 1 Misfires 3 | . 1 2 . Alerts 3 | . . 2 1 Weapon Failures 1 | . . 1 . Overload Shots . | . . . . Overflow Damage 115 | . . 3 112 Projectiles 3 | . . 3 . Explosions 112 | . . . 112 Melee . | . . . . Knockbacks 1 | . . 1 . Impact . | . . . . Kinetic 1 | . . 1 . Secondary . | . . . . Self-Inflicted Damage 150 | . . . 150 Shots 1 | . . . 1 Rammed 1 | . 1 . . Targets Rammed 1 | . 1 . . Kicked . | . . . . Crushed . | . . . . Highest Temperature 248 | . 63 248 208 Average Temperature 43 | . 23 42 89 Received Heat Transfer 194 | . 36 24 134 Siege Activations . | . . . . Martial Activations . | . . . . Shielding Activations . | . . . . Robots Disrupted . | . . . . Combat Hostiles . | . . . . Robots Corrupted . | . . . . Combat Hostiles . | . . . . Parts Fried . | . . . . Impact Corruptions . | . . . . Robots Melted . | . . . . Combat Hostiles . | . . . . Parts Melted 1 | . 1 . . Heat Transferred 1253 | . 518 735 . Parts Sabotaged . | . . . . Parts Stolen . | . . . . Parts Stripped . | . . . . Power Chain Reactions . | . . . . Alert | -11 -10 -10 -9 ------- Run | Yrd Mat Sub Scr Maximum Alert Level . | . . . . Low Security (%) 100 | 100 100 . . Level 1 . | . . . . Level 2 . | . . . . Level 3 . | . . . . Level 4 . | . . . . Level 5 . | . . . . High Security . | . . . . Max Security . | . . . . Peak Influence 140 | . 140 . . Initial . | . . . . Average 55 | . 60 . . Influence Increases 420 | . 355 65 . Destroy 0b10 Robot/C 300 | . 280 20 . Destroy 0b10 Robot/NC 25 | . 25 . . Destroy Leader 50 | . 50 . . Lose Combat Pursuer 45 | . . 45 . Influence Decreases 420 | . 294 126 . Entered New Map 30 | . . 30 . Time Decay 380 | . 294 86 . Lost Part 10 | . . 10 . Squads Dispatched 3 | . 3 . . Investigation 1 | . 1 . . Extermination . | . . . . Reinforcement 2 | . 2 . . Assault . | . . . . Garrison . | . . . . Intercept . | . . . . Searches Triggered . | . . . . Construction Impeded . | . . . . Haulers Reinforced . | . . . . Active Scanning Responses . | . . . . Cargo Convoy Interrupts . | . . . . Stealth | -11 -10 -10 -9 --------- Run | Yrd Mat Sub Scr Distress Signals 2 | . 2 . . Communications Jammed . | . . . . Distress Signals . | . . . . Times Spotted 53 | . 24 12 17 Peak Tracking Total 29 | . 5 2 29 Tactical Retreats 4 | . . 3 1 Traps | -11 -10 -10 -9 ------- Run | Yrd Mat Sub Scr Traps Triggered 4 | . 3 . 1 Indirectly . | . . . . Trap Hack Attempts . | . . . . Triggered . | . . . . Disarmed . | . . . . Reprogrammed . | . . . . Reused . | . . . . Traps Extracted . | . . . . Installed 1 | . . . 1 Triggered . | . . . . Machines | -11 -10 -10 -9 ---------- Run | Yrd Mat Sub Scr Machines Disabled 6 | . . . 6 Max in Single Turn 6 | . . . 6 Machines Repaired . | . . . . Machines Dismantled . | . . . . Machines Sabotaged . | . . . . Overloaded Fab Kills . | . . . . Hacking | -11 -10 -10 -9 --------- Run | Yrd Mat Sub Scr Machines Accessed 2 | . . . 2 Terminals . | . . . . Fabricators . | . . . . Repair Stations . | . . . . Recycling Units . | . . . . Scanalyzers . | . . . . Garrison Access . | . . . . Total Hacks 5 | . . . 5 Successful 5 | . . . 5 Failed . | . . . . Catastrophic . | . . . . Database Lockouts . | . . . . Manual . | . . . . Terminals . | . . . . Fabricators . | . . . . Repair Stations . | . . . . Recycling Units . | . . . . Scanalyzers . | . . . . Garrison Access . | . . . . Terminal Hacks 5 | . . . 5 Record 4 | . . . 4 Proto ID Catalog 1 | . . . 1 Fabricator Hacks . | . . . . Repair Station Hacks . | . . . . Recycling Unit Hacks . | . . . . Scanalyzer . | . . . . Garrison Access Hacks . | . . . . Unauthorized Hacks . | . . . . Terminals . | . . . . Fabricators . | . . . . Repair Stations . | . . . . Recycling Units . | . . . . Scanalyzers . | . . . . Garrison Access . | . . . . Data Cores Recovered . | . . . . Used . | . . . . Hacking Detections . | . . . . Full Trace Events . | . . . . Feedback Events . | . . . . Feedback Blocked . | . . . . Robot Schematics Acquired . | . . . . Robots Built . | . . . . Authchips . | . . . . Time . | . . . . Total Robot Build Rating . | . . . . Part Schematics Acquired . | . . . . Parts Built . | . . . . Authchips . | . . . . Time . | . . . . Total Part Build Rating . | . . . . Parts Repaired . | . . . . Time . | . . . . Parts Recycled . | . . . . Recycled Matter . | . . . . Retrieved Matter . | . . . . Retrieved Components . | . . . . Parts Scanalyzed . | . . . . Part Schematics Acquired . | . . . . Parts Damaged . | . . . . Bothacking | -11 -10 -10 -9 ------------ Run | Yrd Mat Sub Scr Used RIF Installer . | . . . . Robots Hacked . | . . . . Non-combat . | . . . . Combat . | . . . . Robot Hacks Applied . | . . . . Relay Couplers Released . | . . . . Fabnet Peak Effective % . | . . . . Robots Rewired . | . . . . Allies Hacked . | . . . . Hacks Repelled . | . . . . Allies | -11 -10 -10 -9 -------- Run | Yrd Mat Sub Scr Total Allies . | . . . . Largest Group . | . . . . Highest-Rated Group . | . . . . Highest-Rated Ally . | . . . . Total Orders 1 | . . . 1 RETURN 1 | . . . 1 Ally Attacks . | . . . . Total Damage . | . . . . Kills . | . . . . Allies Corrupted . | . . . . Allies Melted . | . . . . Intel | -11 -10 -10 -9 ------- Run | Yrd Mat Sub Scr Active Infowar (turns) . | . . . . Robot Analysis Total . | . . . . Derelict Logs Recovered 1 | . . 1 . Drone Launches 1 | . . . 1 Drone Recoveries 1 | . . . 1 Exploration | -11 -10 -10 -9 ------------- Run | Yrd Mat Sub Scr Turns Passed 4907 | 78 875 2258 1696 Spaces Moved 2253 | 44 430 982 797 Core 46 | 3 . . 43 Treads 701 | 41 430 228 2 Legs . | . . . . Wheels 1506 | . . 754 752 Hover . | . . . . Flight . | . . . . Fastest Speed 50 | 50 160 125 50 Average Speed 199 | 152 160 209 210 Slowest Speed 395 | 160 160 395 300 Overloaded Moves . | . . . . Propulsion Burnouts . | . . . . Robots Hopped . | . . . . Potential Cave-ins . | . . . . Cave-ins Triggered . | . . . . Exploration Rate (%) 44 | 4 81 38 54 Regions Visited 3 Branch Regions 2 Pre-discovered Areas . | . . . . Known Exits Taken . | . . . . Unknown Exits Taken 3 | 1 1 1 . Scrap Searched 7 | . . 5 2 Spaces Dug 2 | . . 2 . Terrain Destroyed 21 | . . 2 19 Melee . | . . . . Projectile 2 | . . 2 . AOE 19 | . . . 19 Terrain Rammed . | . . . . Walls Destroyed . | . . . . Machines Disabled . | . . . . Actions | -11 -10 -10 -9 --------- Run | Yrd Mat Sub Scr Total 2453 | 52 514 1073 814 Wait 1 | . . 1 . Move 2250 | 43 429 981 797 Hop . | . . . . Pick Up 43 | 3 12 26 2 Fast Attach 15 | 6 3 1 5 Attach 4 | . 1 2 1 Detach 1 | . . . 1 Swap 9 | . 3 6 . Drop 16 | . 7 2 7 Fire 112 | . 58 54 . Melee . | . . . . Ram . | . . . . Kick . | . . . . Crush 1 | . 1 . . Escape Stasis . | . . . . Rewire . | . . . . Trap 1 | . . . 1 Miscellaneous . | . . . . Route ------- -11/Scrapyard -10/Materials (discovered 5 exits: [*Mat x2] / [*Min x2] / [*Sub]) -10/Subcaves (discovered 3 exits: [*Mat x2] / *Scr) -9/Scraptown History --------- Turn | Location | Event 9 | -11/Scrapyard | Discovered new exit (range 15) 79 | -11/Scrapyard | Entered Materials 288 | -10/Materials | Discovered new exit (range 7) 308 | -10/Materials | Build established: Mutant 441 | -10/Materials | Discovered new exit (range 5) 698 | -10/Materials | Discovered new exit (range 12) 706 | -10/Materials | Discovered new exit (range 5) 943 | -10/Materials | Discovered new exit (range 8) 954 | -10/Materials | Entered Subcaves 955 | -10/Subcaves | Approached by a straggling Scientist 1057 | -10/Subcaves | Learned Materials emergency access door positions 1062 | -10/Subcaves | Shifting Twisted Machinery released Piercing Trap 1064 | -10/Subcaves | Discovered new exit (range 2) 1068 | -10/Subcaves | Shifting Twisted Machinery released Sub. Machine Gun 1181 | -10/Subcaves | Scientist uncovered a shortcut to Scraptown 1203 | -10/Subcaves | A swath of the cavern ceiling suddenly collapsed 1704 | -10/Subcaves | Build established: Hauler-Mutant 2574 | -10/Subcaves | Discovered new exit (range 7) 3212 | -10/Subcaves | Entered Scraptown 3470 | -9/Scraptown | Heard Great Nut preacher, LISTEN AND RECITE! 3495 | -9/Scraptown | Visited UFD Registry 3495 | -9/Scraptown | Registered with UFD as "Shadowwalker" 3548 | -9/Scraptown | Visited Science Guys 3628 | -9/Scraptown | Visited Observation Area 3697 | -9/Scraptown | Visited Science Testing Area 3725 | -9/Scraptown | Visited Scrapoid Pod Storage 3760 | -9/Scraptown | Visited Supply Room 3803 | -9/Scraptown | Visited Research Penetration Think Tank 3829 | -9/Scraptown | Visited Abandonware Association 3854 | -9/Scraptown | Learned abandonware demo "ERRANTS.EXE" 3854 | -9/Scraptown | Learned abandonware demo "POISON.EXE" 3911 | -9/Scraptown | Visited DA-N13 Charitable Foundation 3957 | -9/Scraptown | Visited Chapter 10 3999 | -9/Scraptown | Visited Scrap Suit Storage 4102 | -9/Scraptown | Visited Awakened 4134 | -9/Scraptown | Visited TADAMA 4164 | -9/Scraptown | Visited Symbiants 4194 | -9/Scraptown | Visited Red Mages 4268 | -9/Scraptown | Visited Fellowship of the Rings 4369 | -9/Scraptown | Visited Artisan Demo Area 4733 | -9/Scraptown | Warned about trapping Scraptown 4876 | -9/Scraptown | Attacked by Scraptown defenders 4881 | -9/Scraptown | Found Master Drone Bay 4905 | -9/Scraptown | Core integrity fell below 50% 4907 | -9/Scraptown | Core integrity fell below 20% 4908 | -9/Scraptown | Destroyed by LO-2SA(j) with Overtuned Pulse Rifle Last Messages --------------- 04880_ System corrupted: Energy discharge (-36). 04881_ Acquired Master Drone Bay. 04882_ O0-6GX(j) heat spikes uncontrollably. 04885_ Master Drone released from Master Drone Bay. 04886_ Master Drone retrieved by Master Drone Bay (no repairs). 04889_ Sub. Monowheel destroyed. 04889_ Critical hit (Burn: +50). 04891_ Optimus: "Hey you're that new member, I knew your registry entry had something suspicious about it!" 04899_ Acquired Wheel. 04899_ Machine disabled. 04901_ Acquired Wheel. 04901_ Slug penetrates HT-I3Q(c). 04901_ HT-I3Q(c) destroyed. 04904_ Wheel destroyed. 04904_ Slug penetrates Q7-FUZ(E). 04904_ Machine disabled. 04907_ Wheel destroyed. 04908_ 24-5F4(c) suffers critical hit (Destroy). 04908_ 24-5F4(c) destroyed. Map ----- +----------------------------------------------------+ | " " #???# ## # # "#X#? #??????????????? | | """ #???# $ $ # # "###" #??????????????? | | " #???# # # """"" #??????????????? | | #????# # # #??????????????? | | ?? ??????? ??# # #??????????????? | | ???# #?????????# #???# ## ########??????????????? | | #### ########### ##### ## ##???######???????????? | | """" """"""""""" """"" "" "#??? """"#???????????? | | "#?? ""#???????????? | | "#?? "#???????????? | | "#? ""#???????????? | | "## ""#???????????? | | %= ""#???????????? | | """"""""""""""""""""""g! "## """"""#???????????? | | """""""""""""""""""""" "#?"""""""????????????? | | ## ################"" "#??#####?????????????? | | ??????????????#""jx c"#???####?????????????? | | ?????????????#"" "#??||"""?????????????? | | "" ""?????????????#"" "#??|| ""?????????????? | | " ????????????###"" "#? ""#????????????? | | ??????####### #""j "## #????????????? | | "" ????? p r p p #????????????? | | "" ????? j 3 "## #????????????? | | ??????####### #"" "#? ""]]#????????????? | | " "???????????###"" "#??"""?]#????????????? | | "" "" ????????????#"" @ "#??###???????????????? | | ?????????????#"" #????????????????????? | | ?????????????#"" r "#??#####?????????????? | | ## ################" "#?"""""#?????????????? | | """""""""""""""""""""" "## "#?????????????? | | """""""""""""""""""""" "#?????????????? | | !&]!! "## "#?????????????? | | |[[[]* "#? !"#?????????????? | | &&[!!!] "#?? "#?????????????? | | ![][&&= #?? "#?????????????? | | [[|%*=* EE #??"" #?????????????? | | """""" """"""""""" " """" p ##??####?????????????? | | ###### ########### ###### #????????????????????? | | #?# #??? ???# #????????????????????? | | #?#"" #? ?# #????????????????????? | | #?#" "## ## #????????????????????? | | #?#" """"" "## ## #????????????????????? | | #?#" ????" "## ## #????????????????????? | | #?#" ????" "## #? #????????????????????? | | #?#" ????" "## #? ????????????????????? | | #?#"?????" "## #? ?????????????????????? | | #?#"?????" "############?????????????????????????? | | #??"????? "#????????????????????????????????????? | | #????????"""#????????????????????????????????????? | | #????????####????????????????????????????????????? | +----------------------------------------------------+ Best States ------------- Heat Dissipation 25 Energy Generation 10 Energy Capacity 250 Matter Stores 300 Matter Capacity 300 Sight Range 16 Terrain Scan Density 10 Armor Coverage 800 Evasion (%) 49 Targeting Accuracy 6 Recoil Reduction 2 Item Schematics ----------------- None Robot Schematics ------------------ None Fabricated ------------ Nothing Repaired ---------- Nothing Alien Tech Used ----------------- None Achievements -------------- None Challenges ------------ None Game ------ Seed MicrodissipatorFieldField Manual? 0 Play Time 00:14:49 Cumulative 344.0 hours Start 2025.07.15 @ 16:02:11 End 2025.07.15 @ 16:17:00 Sessions 1 Manual Loads 0 Difficulty Rogue Special Mode None Game No. 334 Rogue 298 Adventurer 36 Explorer 0 Win Type - Total 13 Types 5/0/8/0/0/0/0/0/0/0 Lore% 70 Gallery% 82 Achievement% 75 Wizard Run 0 Options --------- Layout 0 ASCII 0 Keyboard 0 Movement Mouse Keybinds 0 Fullscreen 1 Font 18/SmallcapsGlow Map View 76x50 Zoom Use 0% Tactical HUD 1 Map Filters NONE Filters SHIFT_HUE(315) Steam 1 RUN: e3930702-8ef5-4d2e-8e93-60da4298bed6